Workbook

Sheet Total
A1: Nom | B1: Total | G1: Dimention | H1: Meuble | I1: Cuve | J1: Reserve | K1: Decante
A2: Meuble | B2: =meuble!E25 -> 455.99 | G2: L | H2: 2000 | I2: 2000
A3: Cuve | B3: =Cuve!E25 -> 1635 | G3: l | H3: 700 | I3: 700
A4: Tuyauterie | B4: =Tuyauterie!E25 -> 36.4 | G4: H | H4: 1000 | I4: 600
A5: Osmolateur | B5: =Osmolateur!E25 -> 27.74
A6: Décante | B6: =Décante!E25 -> 156.01
A7: Electricité | B7: =Electricité!E7 -> 0
A8: Eclairages | B8: =Eclairages!E16 -> 115.88
A9: ElectroAqua | B9: =electroAqua!E25 -> 524.98
A10: Substrat + Pvs | B10: ='substrat + PVs'!E5 -> 1479.28
A11: sels+eau | B11: ='Sels+eau'!E3 -> 80
A15: Total | B15: =SUM(B2:B9) -> 2952 | C15: Prix redsea | D15: 6500
A16: Total avec pierre | B16: =SUM(B2:B11) -> 4511.28 | C16: diff redsea | D16: =D15-SUM(B2:B7) -> 4188.86

Sheet meuble
A1: Matériels | B1: Ref | C1: PU | D1: Nombre | E1: total | F1: Remarques | G1: Site | H1: Date D'achat
A2: Peinture | C2: 24.99 | D2: 1 | E2: =D2*C2 -> 24.99
A3: Contreplaqué marine | C3: 121 | D3: 1 | E3: =D3*C3 -> 121 | F3: Medium 16 mm | G3: entrepot
A4: structue alu | C4: 310 | D4: 1 | E4: =D4*C4 -> 310
D25: Total | E25: =SUM(E2:E24) -> 455.99

Sheet Cuve
A1: Matériels | B1: Ref | C1: PU | D1: Nombre | E1: total | F1: Remarques | G1: Site | H1: Date D'achat
C2: 1635 | D2: 1 | E2: =C2*D2 -> 1635
D25: total | E25: =SUM(E2:E24) -> 1635

Sheet Tuyauterie
A1: Matériels | B1: Ref | C1: PU | D1: Nombre | E1: total | F1: Remarques | G1: Site | H1: Date D'achat
A2: Joint uniseal® 40mm | C2: 3.5 | D2: 2 | E2: =D2*C2 -> 7 | G2: Neo3plus
A3: Joint uniseal® 20mm | C3: 2.75 | D3: 2 | E3: =D3*C3 -> 5.5 | G3: Neo3plus
A4: Coude 90 40mm | C4: 2.5 | D4: 4 | E4: =D4*C4 -> 10 | G4: aquastore
A5: Vanne 40 | C5: 13.9 | D5: 1 | E5: =D5*C5 -> 13.9 | F5: Vanne normal 13,9 | G5: recifart
A6: Tube 40 | D6: 4 | E6: =D6*C6 -> 0 | G6: aquastore
D7: 0 | E7: =D7*C7 -> 0
D8: 0 | E8: =D8*C8 -> 0
A9: tube 32mm | D9: 2 | E9: =D9*C9 -> 0 | G9: aquastore
A10: Embout cannelé 32mm | D10: 1 | E10: =D10*C10 -> 0 | G10: aquastore
A11: Coude 90 32mm | D11: 3 | E11: =D11*C11 -> 0 | G11: aquastore
D12: 0 | E12: =D12*C12 -> 0
D13: 0 | E13: =D13*C13 -> 0
D14: 0 | E14: =D14*C14 -> 0
D25: Total | E25: =SUM(E2:E24) -> 36.4

Sheet Osmolateur
A1: Matériels | B1: Ref | C1: PU | D1: Nombre | E1: total | F1: Remarques | G1: Site | H1: Date D'achat
A2: cuve | B2: 60cm*40cm*20cm | C2: 24.55 | D2: 1 | E2: =D2*C2 -> 24.55 | G2: leroymerlyn
A3: passe paroi | D3: 1 | E3: =D3*C3 -> 0
A4: floatant | C4: 3.19 | D4: 1 | E4: =D4*C4 -> 3.19 | G4: Ali
D25: Total | E25: =SUM(E2:E24) -> 27.74

Sheet Décante
A1: Matériels | B1: Ref | C1: PU | D1: Nombre | E1: total | F1: Remarques | G1: Site | H1: Date D'achat
A2: Ecumeurs | B2: Curve A5 | C2: 122 | D2: 1 | E2: =D2*C2 -> 122 | F2: Mini 2X voulume du fabricant | G2: Aliexpress | H2: Fait
A3: pompes remontés | C3: 16.01 | D3: 1 | E3: =D3*C3 -> 16.01 | F3: 3 et 4 X volumes du bac par heure Soit 11L/min | G3: Aliexpress
A7: Décante | B7: fond tech | C7: verre normal bord brut | D7: 7.37 | E7: 1 | F7: =D7*E7 -> 7.37
B8: AV/AR tech | C8: verre normal bord brut | D8: 7.9 | E8: 2 | F8: =D8*E8 -> 15.8
B9: cotés tech | C9: verre normal bord brut | D9: 3.77 | E9: 2 | F9: =D9*E9 -> 7.54
B10: Lame | C10: verre normal bord brut | D10: 1.88 | E10: 4 | F10: =D10*E10 -> 7.52
B11: Colle | D11: 9.99 | E11: 2 | F11: =D11*E11 -> 19.98
B12: pistolet | D12: 7.5 | E12: 1 | F12: =D12*E12 -> 7.5
B13: foret 45mm | D13: 2.5 | E13: 1 | F13: =D13*E13 -> 2.5
B14: Peinture | D14: 8 | E14: 1 | F14: =D14*E14 -> 8
B15: Mousse | D15: 5.99 | E15: 3 | F15: =D15*E15 -> 17.97
B16: Bac reserve eau | D16: 3.9 | E16: 1 | F16: =D16*E16 -> 3.9
E25: =SUM(E2:E24) -> 156.01

Sheet Electricité
A1: Matériels | B1: Ref | C1: PU | D1: Nombre | E1: total | F1: Remarques | G1: Site | H1: Date D'achat
A2: Rail DIN | B2: 581538 | E2: =D2*C2 -> 0 | F2: nombre de module 15 prise + 2 dijoncteur + emplacement Ordinateur | G2: Magasin de bricolage | H2: Fait
A3: disjoncteur | B3: 948469 | E3: =D3*C3 -> 0 | G3: Magasin de bricolage | H3: Fait
A4: Prise electrique | B4: 1159821 | E4: =D4*C4 -> 0 | G4: Magasin de bricolage | H4: Fait
D7: Total | E7: =SUM(E2:E6) -> 0

Sheet Eclairages
A1: Matériels | B1: Ref | C1: PU | D1: Nombre | E1: total | F1: Remarques | G1: Site | H1: Date D'achat
A2: Leds | C2: 0.1 | D2: 160 | E2: =D2*C2 -> 16 | G2: Aliexpress
A3: Regle aluminium | C3: 10 | D3: 2 | E3: =D3*C3 -> 20 | G3: Magasin de bricolage
A4: Alimentation 12V | C4: 23.5 | D4: 2 | E4: =D4*C4 -> 47 | G4: Recupération
A5: PCB | C5: 1.68 | D5: 16 | E5: =D5*C5 -> 26.88 | G5: SeedStudio
A6: Resistance | C6: 0.12 | D6: 50 | E6: =D6*C6 -> 6 | G6: Aliexpress
D16: Total | E16: =SUM(E2:E10) -> 115.88

Sheet electroAqua
A1: Matériels | B1: Ref | C1: PU | D1: Nombre | E1: total | F1: Remarques | G1: Site | H1: Date D'achat
A2: Pompe de brassage | C2: 22 | D2: 2 | E2: =D2*C2 -> 44 | F2: 40X le volume => 7200 L | G2: marinehome
A3: Chauffage | C3: 10.99 | D3: 2 | E3: =D3*C3 -> 21.98 | F3: 2*300w | G3: aquastore
A4: Ecumeur | C4: 350 | D4: 1 | E4: =D4*C4 -> 350 | G4: marinehome
A5: Pompe de remonté | C5: 109 | D5: 1 | E5: =D5*C5 -> 109 | G5: aquastore
D25: Total | E25: =SUM(E2:E24) -> 524.98

Sheet substrat + PVs
A1: 50 | B1: Ref | C1: PU | D1: Nombre | E1: total | F1: Remarques | G1: Site | H1: Date D'achat
A2: Sable | B2: AQUA MEDIC Bali Sand 0,5-1,2mm - 10 kg | C2: 29.99 | D2: 2 | E2: =D2*C2 -> 59.98 | G2: Aquastore | H2: Fait
A3: PV | C3: 24.9 | D3: 57 | E3: =D3*C3 -> 1419.3 | G3: Marinehome | H3: Fait
D4: 0 | E4: =D4*C4 -> 0 | G4: Marinehome | H4: Fait
D5: Total | E5: =SUM(E2:E4) -> 1479.28

Sheet Sels+eau
A1: Matériels | B1: Ref | C1: PU | D1: Nombre | E1: total | F1: Remarques | G1: Site | H1: Date D'achat
C2: 80 | D2: 1 | E2: =D2*C2 -> 80 | F2: 35g/L => 1025 200L=> 7Kg | G2: Marine home | H2: Septembre
D3: Total | E3: =SUM(E2:E2) -> 80
